fUSD/lending_fUSD_20240923
["ID","MTS","AMOUNT","RATE_DAILY","PERIOD"]
[338907060,1727056232973,-415.22091175,0.00013,2]
[338907061,1727056232984,-4083.88630759,0.00013,2]
[338907062,1727056232995,-3508.99,0.00013,2]
[338907063,1727056233006,-794.76162871,0.00013,2]
[338907064,1727056238139,-918.6432827,0.00012446,2]
[338907089,1727056239925,-81.3567173,0.00012446,2]
[338907090,1727056239936,-1167.3532827,0.00013,2]
[338907091,1727056239950,-45910.78798568,0.00013,2]
[338907123,1727056241098,-626.82996344,0.00013,2]
[338907124,1727056241108,-5055.48161352,0.00013,2]
[338907125,1727056241119,-573.16626518,0.00013,2]
[338907126,1727056241134,-165356.30846657,0.00013,2]
[338907127,1727056241145,-4151.4909632,0.00013,2]
[338907128,1727056241157,-515.82498751,0.00013,2]
[338907131,1727056243031,-482.99999997,0.00013,2]
[338907132,1727056243042,-349.20183313,0.00013,2]
[338907133,1727056243054,-6901.25940064,0.00013,2]
[338907134,1727056243143,-9225.0,0.00013,2]
[338907135,1727056243154,-438.44803951,0.00013,2]
[338907136,1727056243165,-993.56644484,0.00013,2]
[338907137,1727056243176,-690.14317779,0.00013,2]
[338907138,1727056243186,-2151.55353911,0.00013,2]
[338907139,1727056243281,-12907.64513513,0.00013,2]
[338907141,1727056243292,-2488.55910474,0.00013,2]
[338907148,1727056245811,-879.76000086,0.00013,2]
[338907157,1727056245937,-4737.96503898,0.00013,2]
[338907158,1727056245949,-553998.21591117,0.00013,2]
[338907159,1727056245959,-23717.44796567,0.00013,2]
[338907160,1727056245971,-399.26215511,0.00013,2]
[338907161,1727056246077,-2202.09706696,0.00013,2]
[338907162,1727056246089,-878.26161863,0.00013,2]
[338907163,1727056246101,-442.80899785,0.00013,2]
[338907164,1727056246113,-3040.24556964,0.00013,2]
[338907165,1727056246124,-1499.97752322,0.00013,2]
[338907166,1727056246135,-995.28274226,0.00013,2]
[338907167,1727056246147,-3893.8786,0.00013,2]
[338907168,1727056246158,-12460.6,0.00013,2]
[338907169,1727056246169,-1615.08851779,0.00013,2]
[338907170,1727056246181,-5102.84800258,0.00013,2]
[338907171,1727056246210,-4038.52621349,0.00013,2]
[338907172,1727056246221,-688.40544226,0.00013,2]
[338907176,1727056325533,200.0,0.00012,2]
[338907178,1727056333409,14772.146,0.00011931,2]
[338907179,1727056336642,500.0,0.00010663,2]
[338907180,1727056374517,250.0,0.00011983,2]
[338907181,1727056402856,500.0,0.00022,120]
[338907182,1727056407921,250.0,0.00011993,2]
[338907183,1727056475628,250.0,0.00011949,2]
[338907184,1727056528053,1050.0,0.00011,2]
[338907185,1727056560229,500.0,0.00010663,2]
[338907186,1727056561819,171.93031898,0.00010663,2]
[338907187,1727056614134,-201.80285421,0.0001207,2]
[338907188,1727056614154,-798.19714579,0.000121,2]
[338907189,1727056617912,-88.55285421,0.000121,2]
[338907190,1727056617935,-201.63040742,0.0001217,2]
[338907191,1727056617956,-539.17,0.0001227,2]
[338907192,1727056661037,200.0,0.00011937,2]
[338907193,1727056693424,323.45,0.00010024,2]
[338907194,1727056716448,500.0,0.00010663,2]
[338907195,1727056746597,155.19,0.00010959,2]
[338907196,1727056758649,23900.0,0.00011929,2]
[338907197,1727056760752,-323.45,0.00012288,2]
[338907198,1727056771806,207.19,0.00011929,2]
[338907199,1727056776319,200.0,0.00011929,2]
[338907200,1727056785989,4572.46,0.00012024,2]
[338907201,1727056810271,150.0,0.00011917,2]
[338907202,1727056842924,1000.0,0.00011902,2]
[338907203,1727056953590,250.0,0.00011897,2]
[338907204,1727056982416,-798.08,0.000121,2]
[338907205,1727057004080,150.0,0.000139,30]
[338907206,1727057024851,-1000.0,0.00012342,2]
[338907207,1727057026299,269.58,0.00011905,2]
[338907208,1727057027265,-1000.0,0.00012342,2]
[338907209,1727057069438,500.0,0.00011893,2]
[338907210,1727057105115,150.0,0.00011688,2]
[338907211,1727057105629,150.0,0.00011742,2]
[338907212,1727057106157,150.0,0.00011796,2]
[338907213,1727057106672,150.0,0.0001185,2]
[338907214,1727057107187,150.0,0.00011904,2]
[338907215,1727057107592,150.0,0.00011958,2]
[338907216,1727057108116,150.0,0.00012012,2]
[338907217,1727057119811,156.69397432,0.00011688,2]
[338907218,1727057129780,150.0,0.00011688,2]
[338907219,1727057130768,150.0,0.00011904,2]
[338907220,1727057136196,150.0,0.00011688,2]
[338907221,1727057146929,152.29429138,0.00011688,2]
[338907222,1727057150984,492.04498127,0.00011917,2]
[338907262,1727057224986,581.64,0.00011808,2]
[338907263,1727057228052,242.0,0.00011742,2]
[338907264,1727057229970,509.52,0.0001203,2]
[338907265,1727057234343,-150.0,0.00012066,2]
[338907266,1727057234365,-718.27,0.000121,2]
[338907267,1727057234387,-150.0,0.00012121,2]
[338907268,1727057234410,-81.73,0.00012121,2]
[338907301,1727057266741,150.0,0.00022,120]
[338907302,1727057267341,150.0,0.00022,120]
[338907303,1727057267889,150.0,0.00022,120]
[338907304,1727057268427,150.0,0.00022,120]
[338907305,1727057268861,150.0,0.00022,120]
[338907306,1727057269393,150.0,0.00022,120]
[338907307,1727057269911,150.0,0.00022,120]
[338907308,1727057270375,150.0,0.00022,120]
[338907309,1727057270986,150.0,0.00022,120]
[338907310,1727057271482,150.0,0.00022,120]
[338907311,1727057272076,150.0,0.00022,120]
[338907312,1727057272571,150.0,0.00022,120]
[338907313,1727057273174,150.0,0.00022,120]
[338907314,1727057274379,150.0,0.00022,120]
[338907315,1727057275891,150.0,0.00022,120]
[338907316,1727057286141,308.04,9.895e-05,2]
[338907317,1727057318078,840.0,0.00011808,2]
[338907318,1727057329560,204.04,0.00011808,2]
[338907319,1727057332913,150.0,0.00011808,2]
[338907321,1727057375677,1200.0,0.00012,2]
[338907322,1727057387032,500.0,0.00011808,2]
[338907336,1727057432192,-646.44,0.000121,2]
[338907337,1727057432202,-68.27,0.00012121,2]
[338907338,1727057432212,-308.04,0.00012159,2]
[338907339,1727057432221,-150.0,0.00012175,2]
[338907340,1727057432231,-150.0,0.00012229,2]
[338907341,1727057432240,-150.0,0.00012283,2]
[338907342,1727057432249,-150.0,0.00012337,2]
[338907343,1727057432259,-150.0,0.00012337,2]
[338907344,1727057432269,-3265.9842473,0.00012344,2]
[338907345,1727057432280,-559.2401527,0.00012344,2]
[338907346,1727057432289,-150.0,0.00012391,2]
[338907347,1727057432299,-300.0,0.00012444,2]
[338907348,1727057432308,-150.0,0.00012445,2]
[338907349,1727057432318,-499.99,0.00012445,2]
[338907350,1727057432328,-1321.09,0.00012445,2]
[338907351,1727057432337,-661.08798793,0.00012445,2]
[338907352,1727057432348,-479.16,0.00012445,2]
[338907353,1727057432359,-113.64201207,0.00012445,2]
[338907354,1727057432368,-178.96,0.00012489,2]
[338907356,1727057432379,-31.40826303,0.00012499,2]
[338907358,1727057432390,-118.59173697,0.00012499,2]
[338907360,1727057432399,-255.67,0.00012501,2]
[338907362,1727057432408,-150.0,0.00012525,2]
[338907364,1727057432418,-448.0,0.00012526,2]
[338907366,1727057432427,-809.0,0.00012526,2]
[338907368,1727057432437,-889.57968903,0.00012526,2]
[338907370,1727057432448,-45.65131097,0.00012526,2]
[338907372,1727057432457,-509.48983365,0.00012526,2]
[338907375,1727057432468,-48.51016635,0.00012526,2]
[338907376,1727057432478,-1903.0,0.00012526,2]
[338907377,1727057432488,-554.45,0.00012526,2]
[338907378,1727057432498,-1913.0,0.00012526,2]
[338907379,1727057432507,-3347.0,0.00012526,2]
[338907380,1727057432518,-248.657,0.00012526,2]
[338907381,1727057432528,-806.0,0.00012526,2]
[338907382,1727057432538,-1549.0,0.00012542,2]
[338907384,1727057432547,-625.0,0.00012542,2]
[338907385,1727057432558,-1262.0,0.00012542,2]
[338907386,1727057432568,-150.0,0.00012553,2]
[338907387,1727057432578,-150.0,0.00012553,2]
[338907388,1727057432587,-150.0,0.00012568,2]
[338907389,1727057432597,-1147.0,0.00012568,2]
[338907390,1727057432607,-5868.0,0.00012568,2]
[338907391,1727057432617,-13490.0,0.00012568,2]
[338907392,1727057432627,-150.0,0.00012608,2]
[338907393,1727057432637,-150.0,0.00012662,2]
[338907394,1727057432646,-150.0,0.00012716,2]
[338907395,1727057432656,-1181.57387393,0.0001274,2]
[338907396,1727057432666,-150.0,0.00012761,2]
[338907397,1727057432676,-150.0,0.0001277,2]
[338907398,1727057432687,-150.0,0.0001277,2]
[338907399,1727057432698,-150.0,0.00012775,2]
[338907400,1727057432709,-55731.1220697,0.00012784,2]
[338907401,1727057432719,-945.56644578,0.000128,2]
[338907402,1727057432729,-150.0,0.00012824,2]
[338907403,1727057432738,-150.0,0.00012848,2]
[338907404,1727057432747,-150.0,0.00012852,2]
[338907405,1727057432758,-212.16434967,0.00012864,2]
[338907406,1727057432768,-150.0,0.00012875,2]
[338907407,1727057432777,-150.0,0.00012878,2]
[338907408,1727057432787,-150.0,0.00012891,2]
[338907409,1727057432797,-487.678,0.00012896,2]
[338907410,1727057432807,-180.05269311,0.00012896,2]
[338907411,1727057432817,-500.0,0.00012896,2]
[338907412,1727057432828,-200.0,0.00012896,2]
[338907413,1727057432838,-669.369,0.000129,2]
[338907414,1727057432848,-2915.2033,0.000129,2]
[338907415,1727057432857,-512.9073,0.000129,2]
[338907416,1727057432866,-803.2806,0.000129,2]
[338907417,1727057432875,-5068.1881,0.000129,2]
[338907418,1727057432885,-215.6493,0.000129,2]
[338907419,1727057432894,-8421.4897,0.000129,2]
[338907420,1727057432903,-22851.2847,0.000129,2]
[338907421,1727057432912,-478.94003916,0.000129,2]
[338907422,1727057432921,-174.79057916,0.000129,2]
[338907423,1727057432932,-159.33880151,0.000129,2]
[338907424,1727057432941,-168.2603193,0.000129,2]
[338907425,1727057432950,-275.94009012,0.000129,2]
[338907426,1727057432959,-2012.16,0.000129,2]
[338907427,1727057432968,-173.86606689,0.000129,2]
[338907428,1727057432978,-173.86606689,0.000129,2]
[338907429,1727057432987,-173.86606689,0.000129,2]
[338907430,1727057432996,-173.86606689,0.000129,2]
[338907431,1727057433006,-173.86606689,0.000129,2]
[338907432,1727057433015,-174.36,0.000129,2]
[338907433,1727057433024,-381.60355219,0.000129,2]
[338907434,1727057433034,-381.60355219,0.000129,2]
[338907435,1727057433044,-381.60355219,0.000129,2]
[338907436,1727057433053,-381.60355219,0.000129,2]
[338907437,1727057433063,-381.60355219,0.000129,2]
[338907438,1727057433073,-381.60355219,0.000129,2]
[338907439,1727057433082,-381.60355219,0.000129,2]
[338907440,1727057433092,-381.60355219,0.000129,2]
[338907441,1727057433101,-381.60355219,0.000129,2]
[338907442,1727057433110,-381.60355219,0.000129,2]
[338907443,1727057433119,-381.60355219,0.000129,2]
[338907444,1727057433128,-381.60355219,0.000129,2]
[338907445,1727057433137,-381.60355219,0.000129,2]
[338907446,1727057433147,-381.60355219,0.000129,2]
[338907447,1727057433156,-381.60355219,0.000129,2]
[338907448,1727057433165,-381.60355219,0.000129,2]
[338907449,1727057433175,-381.60355219,0.000129,2]
[338907450,1727057433184,-381.60355219,0.000129,2]
[338907451,1727057433193,-381.60355219,0.000129,2]
[338907452,1727057433203,-382.1,0.000129,2]
[338907453,1727057433213,-441.71795571,0.000129,2]
[338907454,1727057433224,-441.71795571,0.000129,2]
[338907455,1727057433234,-441.71795571,0.000129,2]
[338907456,1727057433244,-441.71795571,0.000129,2]
[338907457,1727057433253,-441.71795571,0.000129,2]
[338907458,1727057433263,-441.71795571,0.000129,2]
[338907459,1727057433273,-441.71795571,0.000129,2]
[338907460,1727057433283,-441.71795571,0.000129,2]
[338907461,1727057433292,-441.71795571,0.000129,2]
[338907462,1727057433301,-441.71795571,0.000129,2]
[338907463,1727057433313,-441.71795571,0.000129,2]
[338907464,1727057433322,-441.71795571,0.000129,2]
[338907465,1727057433331,-441.71795571,0.000129,2]
[338907466,1727057433342,-441.71795571,0.000129,2]
[338907467,1727057433352,-441.71795571,0.000129,2]
[338907468,1727057433362,-441.71795571,0.000129,2]
[338907469,1727057433372,-441.71795571,0.000129,2]
[338907470,1727057433381,-441.71795571,0.000129,2]
[338907471,1727057433393,-441.71795571,0.000129,2]
[338907472,1727057433402,-442.21,0.000129,2]
[338907473,1727057433412,-697.23307908,0.000129,2]
[338907474,1727057433421,-315.73635493,0.000129,2]
[338907475,1727057433431,-534.86060728,0.000129,2]
[338907476,1727057433440,-1908.70307886,0.000129,2]
[338907477,1727057433449,-150.0,0.00012915,2]
[338907478,1727057433460,-150.0,0.00012927,2]
[338907479,1727057433470,-150.0,0.00012932,2]
[338907480,1727057433480,-150.0,0.00012934,2]
[338907481,1727057433489,-150.0,0.00012935,2]
[338907482,1727057433499,-150.0,0.00012936,2]
[338907483,1727057433509,-150.0,0.00012947,2]
[338907484,1727057433518,-150.0,0.00012952,2]
[338907485,1727057433528,-500.34862955,0.0001297,2]
[338907486,1727057433537,-641.76078178,0.00012973,2]
[338907487,1727057433545,-500.0,0.00012973,2]
[338907488,1727057433554,-500.0,0.00012973,2]
[338907489,1727057433563,-602.8637477,0.00012973,2]
[338907490,1727057433572,-503.88090778,0.00012973,2]
[338907491,1727057433582,-251.41224922,0.00012986,2]
[338907492,1727057433592,-154.15323164,0.00012986,2]
[338907493,1727057433601,-243.27130488,0.00012986,2]
[338907494,1727057433611,-245.15258834,0.0001299,2]
[338907495,1727057433621,-154.17,0.0001299,2]
[338907496,1727057433630,-154.17,0.0001299,2]
[338907497,1727057433640,-154.17,0.0001299,2]
[338907498,1727057433650,-500.0,0.00012999,2]
[338907499,1727057433659,-500.0,0.00012999,2]
[338907500,1727057433669,-466.69382954,0.00012999,2]
[338907501,1727057433679,-27860.9106751,0.00013,2]
[338907502,1727057433688,-221893.52611624,0.00013,2]
[338907503,1727057433702,-28963.57563702,0.00013,2]
[338907504,1727057433713,-1247.87092102,0.00013,2]
[338907505,1727057433726,-3479.16924216,0.00013,2]
[338907506,1727057433749,-734.83810697,0.00013,2]
[338907507,1727057433762,-442907.16345643,0.00013,2]
[338907509,1727057438382,-500.0,0.00012973,2]
[338907510,1727057438393,-157089.61409467,0.00013,2]
[338907511,1727057438405,-33741.26908758,0.00013,2]
[338907512,1727057438416,-2342.33206655,0.00013,2]
[338907542,1727057439041,-62986.20374858,0.00013,2]
[338907546,1727057439064,-3717.6813351,0.00013,2]
[338907567,1727057440214,-1082.914,0.00012568,2]
[338907568,1727057440226,-5301.63143181,0.00013,2]
[338907569,1727057440238,-5067.44166413,0.00013,2]
[338907570,1727057440249,-1027.18596745,0.00013,2]
[338907571,1727057440259,-331.37356652,0.00013,2]
[338907572,1727057440385,-1035.31554844,0.00013,2]
[338907573,1727057440397,-257.884,0.00013,2]
[338907574,1727057440409,-1250.97093809,0.00013,2]
[338907576,1727057440546,-82.87779563,0.00013,2]
[338907577,1727057440562,-2830.02928545,0.00013,2]
[338907580,1727057443173,-656.86101804,0.00013,2]
[338907581,1727057443319,-443.4506406,0.00013,2]
[338907582,1727057443335,-1781.74952047,0.00013,2]
[338907583,1727057443472,-445.03084536,0.00013,2]
[338907584,1727057443489,-378.703701,0.00013,2]
[338907585,1727057443506,-4143.31,0.00013,2]
[338907586,1727057443517,-293.80853246,0.00013,2]
[338907587,1727057443528,-1728.53770147,0.00013,2]
[338907588,1727057443539,-2722.72632865,0.00013,2]
[338907589,1727057443550,-1383.95848256,0.00013,2]
[338907590,1727057443562,-16121.3915451,0.00013,2]
[338907602,1727057446300,-2659.11323787,0.00013,2]
[338907603,1727057446313,-15198.06703155,0.00013,2]
[338907604,1727057446326,-35510.06290173,0.00013,2]
[338907605,1727057446338,-4411.4206032,0.00013,2]
[338907606,1727057446460,-526887.23804038,0.00013,2]
[338907607,1727057446471,-5120.18609068,0.00013,2]
[338907608,1727057448842,500.0,0.00010663,2]
[338907609,1727057474069,500.0,0.00010663,2]
[338907610,1727057518806,420.4087,0.00012021,2]
[338907611,1727057548131,500.0,0.00010663,2]
[338907612,1727057573050,288.0,0.00022,120]
[338907613,1727057576777,4259.17,0.00012013,2]
[338907614,1727057581728,279.54,0.00012013,2]
[338907615,1727057639218,465.10567443,0.00010663,2]
[338907616,1727057839823,200.0,0.00012,2]
[338907617,1727057865103,150.0,0.00011921,2]
[338907618,1727057874626,183.18,0.00011921,2]
[338907619,1727057886784,1852.42,0.00011926,2]
[338907620,1727057901024,500.0,0.00010663,2]
[338907621,1727057915195,328.0,0.00011908,2]
[338907622,1727057929376,156.91,0.00010959,2]
[338907623,1727057937740,255.87,0.00011873,2]
[338907624,1727057951003,332.5,9.947e-05,2]
[338907625,1727057995905,500.0,0.00021999,120]
[338907626,1727057996186,500.0,0.00021999,120]
[338907627,1727057996439,500.0,0.00021999,120]
[338907628,1727057996710,500.0,0.00021999,120]
[338907629,1727057996971,500.0,0.00021999,120]
[338907630,1727057997264,275.42723664,0.00021999,120]
[338907631,1727057999698,578.33511119,0.00021999,120]
[338907632,1727058001983,500.0,0.00021999,120]
[338907633,1727058002267,500.0,0.00021999,120]
[338907634,1727058002551,500.0,0.00021999,120]
[338907635,1727058002879,500.0,0.00021999,120]
[338907636,1727058003122,4501.51189377,0.0001203,2]
[338907637,1727058003179,500.0,0.00021999,120]
[338907638,1727058003434,504.57036594,0.00021999,120]
[338907639,1727058014893,13101.77,0.00011851,2]
[338907640,1727058084135,250.0,0.00011838,2]
[338907641,1727058091666,527.5,0.00011841,2]
[338907642,1727058110475,2048.08,0.00011852,2]
[338907643,1727058127879,279.54,0.00011852,2]
[338907644,1727058157959,1000.0,0.00011852,2]
[338907645,1727058223669,250.0,0.00011863,2]
[338907646,1727058315416,152.05302842,0.00011688,2]
[338907647,1727058333666,1050.0,0.00011,2]
[338907672,1727058421270,500.0,0.00021999,120]
[338907673,1727058421672,500.0,0.00021999,120]
[338907674,1727058422039,159.97018668,0.00021999,120]
[338907675,1727058425779,375.77094475,0.00021999,120]
[338907676,1727058437865,500.0,0.00021999,120]
[338907677,1727058438124,500.0,0.00021999,120]
[338907678,1727058438425,500.0,0.00021999,120]
[338907679,1727058438838,500.0,0.00021999,120]
[338907680,1727058439118,500.0,0.00021999,120]
[338907681,1727058439589,502.18409955,0.00021999,120]
[338907682,1727058441778,500.0,0.00021999,120]
[338907683,1727058442022,500.0,0.00021999,120]
[338907684,1727058442348,500.0,0.00021999,120]
[338907685,1727058442603,631.75707988,0.00021999,120]
[338907686,1727058444646,500.0,0.00021999,120]
[338907687,1727058444916,346.62534166,0.00021999,120]
[338907688,1727058451149,500.0,0.00021999,120]
[338907689,1727058451472,500.0,0.00021999,120]
[338907690,1727058451726,500.0,0.00021999,120]
[338907691,1727058452024,500.0,0.00021999,120]
[338907692,1727058452302,500.0,0.00021999,120]
[338907693,1727058452621,500.0,0.00021999,120]
[338907694,1727058454730,500.0,0.00021999,120]
[338907695,1727058454980,165.83290943,0.00021999,120]
[338907696,1727058457482,500.0,0.00021999,120]
[338907697,1727058457756,500.0,0.00021999,120]
[338907698,1727058457866,737.6,0.00011861,2]
[338907699,1727058458020,500.0,0.00021999,120]
[338907700,1727058458308,500.0,0.00021999,120]
[338907701,1727058458653,500.0,0.00021999,120]
[338907702,1727058458908,500.0,0.00021999,120]
[338907703,1727058459170,500.0,0.00021999,120]
[338907704,1727058459462,502.67391449,0.00021999,120]
[338907705,1727058467873,3004.0,0.00021,60]
[338907706,1727058467926,500.0,0.00021999,120]
[338907707,1727058468170,500.0,0.00021999,120]
[338907708,1727058468441,500.0,0.00021999,120]
[338907709,1727058468742,500.0,0.00021999,120]
[338907710,1727058469070,500.0,0.00021999,120]
[338907711,1727058469349,560.27666453,0.00021999,120]
[338907712,1727058473294,500.0,0.00021999,120]
[338907713,1727058473609,500.0,0.00021999,120]
[338907714,1727058473935,500.0,0.00021999,120]
[338907715,1727058474247,500.0,0.00021999,120]
[338907716,1727058474528,500.0,0.00021999,120]
[338907717,1727058474984,502.39969296,0.00021999,120]
[338907718,1727058476965,500.0,0.00021999,120]
[338907719,1727058477238,500.0,0.00021999,120]
[338907720,1727058477524,500.0,0.00021999,120]
[338907721,1727058477804,500.0,0.00021999,120]
[338907722,1727058478105,500.0,0.00021999,120]
[338907723,1727058480471,500.0,0.00021999,120]
[338907724,1727058480740,548.99142314,0.00021999,120]
[338907725,1727058481708,165.75,0.00011861,2]
[338907726,1727058482956,500.0,0.00021999,120]
[338907727,1727058483233,500.0,0.00021999,120]
[338907728,1727058483514,500.0,0.00021999,120]
[338907729,1727058483791,500.0,0.00021999,120]
[338907730,1727058484110,500.0,0.00021999,120]
[338907731,1727058484373,500.0,0.00021999,120]
[338907732,1727058484654,500.0,0.00021999,120]
[338907733,1727058485266,502.6770688,0.00021999,120]
[338907734,1727058488754,500.0,0.00021999,120]
[338907735,1727058489039,500.0,0.00021999,120]
[338907736,1727058489380,500.0,0.00021999,120]
[338907737,1727058489709,500.0,0.00021999,120]
[338907738,1727058490052,500.0,0.00021999,120]
[338907739,1727058490370,500.0,0.00021999,120]
[338907740,1727058490703,500.0,0.00021999,120]
[338907741,1727058491276,502.355217,0.00021999,120]
[338907742,1727058493311,500.0,0.00021999,120]
[338907743,1727058493638,500.0,0.00021999,120]
[338907744,1727058493932,533.76945627,0.00021999,120]
[338907745,1727058496378,500.0,0.00021999,120]
[338907746,1727058496825,431.62653523,0.00021999,120]
[338907747,1727058504477,500.0,0.00021999,120]
[338907748,1727058504802,500.0,0.00021999,120]
[338907749,1727058505057,500.0,0.00021999,120]
[338907750,1727058505352,500.0,0.00021999,120]
[338907751,1727058505625,500.0,0.00021999,120]
[338907752,1727058506261,500.0,0.00021999,120]
[338907753,1727058507055,500.0,0.00021999,120]
[338907754,1727058507314,504.49614059,0.00021999,120]
[338907755,1727058509774,500.0,0.00021999,120]
[338907756,1727058510080,382.94697532,0.00021999,120]
[338907757,1727058512522,500.0,0.00021999,120]
[338907758,1727058512814,500.0,0.00021999,120]
[338907759,1727058513102,500.0,0.00021999,120]
[338907760,1727058513355,500.0,0.00021999,120]
[338907761,1727058513657,500.0,0.00021999,120]
[338907762,1727058514095,500.0,0.00021999,120]
[338907763,1727058514349,500.0,0.00021999,120]
[338907764,1727058514401,502.74151968,0.00021999,120]
[338907765,1727058514913,500.0,0.00021999,120]
[338907766,1727058514977,500.0,0.00021999,120]
[338907767,1727058515291,500.0,0.00021999,120]
[338907768,1727058515668,500.0,0.00021999,120]
[338907769,1727058515930,500.0,0.00021999,120]
[338907770,1727058516211,500.0,0.00021999,120]
[338907771,1727058516622,500.0,0.00021999,120]
[338907772,1727058516670,500.0,0.00021999,120]
[338907773,1727058516895,500.0,0.00021999,120]
[338907774,1727058516955,383.13768008,0.00021999,120]
[338907775,1727058517145,500.0,0.00021999,120]
[338907776,1727058517398,500.0,0.00021999,120]
[338907777,1727058517654,500.0,0.00021999,120]
[338907778,1727058517973,500.0,0.00021999,120]
[338907779,1727058518269,500.0,0.00021999,120]
[338907780,1727058518694,500.0,0.00021999,120]
[338907781,1727058520839,500.0,0.00021999,120]
[338907782,1727058521180,500.0,0.00021999,120]
[338907783,1727058521257,500.0,0.00021999,120]
[338907784,1727058521489,500.0,0.00021999,120]
[338907785,1727058521539,500.0,0.00021999,120]
[338907786,1727058521783,500.0,0.00021999,120]
[338907787,1727058522011,500.0,0.00021999,120]
[338907788,1727058522105,500.0,0.00021999,120]
[338907789,1727058522154,500.0,0.00021999,120]
[338907790,1727058522409,500.0,0.00021999,120]
[338907791,1727058522501,500.0,0.00021999,120]
[338907792,1727058522706,500.0,0.00021999,120]
[338907793,1727058522793,500.0,0.00021999,120]
[338907794,1727058523002,500.0,0.00021999,120]
[338907795,1727058523056,377.5550966,0.00021999,120]
[338907796,1727058527864,603.48024865,0.00021999,120]
[338907797,1727058529977,500.0,0.00021999,120]
[338907798,1727058530572,500.0,0.00021999,120]
[338907799,1727058530911,500.0,0.00021999,120]
[338907800,1727058531169,541.61597089,0.00021999,120]
[338907801,1727058533068,500.0,0.00021999,120]
[338907802,1727058533332,500.0,0.00021999,120]
[338907803,1727058533606,500.0,0.00021999,120]
[338907804,1727058533939,500.0,0.00021999,120]
[338907805,1727058534220,500.0,0.00021999,120]
[338907806,1727058534613,500.0,0.00021999,120]
[338907807,1727058534887,504.26970232,0.00021999,120]
[338907808,1727058538743,500.0,0.00021999,120]
[338907809,1727058539026,500.0,0.00021999,120]
[338907810,1727058539345,500.0,0.00021999,120]
[338907811,1727058539683,500.0,0.00021999,120]
[338907812,1727058540029,500.0,0.00021999,120]
[338907813,1727058540285,500.0,0.00021999,120]
[338907814,1727058540553,500.0,0.00021999,120]
[338907815,1727058540875,277.878893,0.00021999,120]
[338907816,1727058543208,500.0,0.00021999,120]
[338907817,1727058543388,500.0,0.00021999,120]
[338907818,1727058543785,500.0,0.00021999,120]
[338907819,1727058544120,500.0,0.00021999,120]
[338907820,1727058544397,500.0,0.00021999,120]
[338907821,1727058544685,500.0,0.00021999,120]
[338907822,1727058545012,500.0,0.00021999,120]
[338907823,1727058545298,502.59929724,0.00021999,120]